bitfinex/quotes_BTCUSD_20251221
["timestamp","ask_amount","ask_price","bid_price","bid_amount"]
[1766337154213,0.00191206,88512.0,88504.0,0.01129892]
[1766337155439,0.00191206,88512.0,88503.0,0.01129905]
[1766337157293,0.00191206,88512.0,88504.0,0.01129892]
[1766337157871,0.00191206,88512.0,88503.0,0.01129905]
[1766337158595,0.00191206,88512.0,88502.0,0.01129917]
[1766337158796,0.17901206,88512.0,88503.0,0.01129905]
[1766337159407,0.17901206,88512.0,88502.0,0.01129917]
[1766337159807,0.17901206,88512.0,88503.0,0.01129905]
[1766337167802,0.17850306,88512.0,88504.0,0.01129892]
[1766337168238,0.17850306,88512.0,88503.0,0.01129905]
[1766337168747,0.17850306,88512.0,88502.0,0.01129917]
[1766337168902,0.17850306,88512.0,88503.0,0.01129905]
[1766337170555,0.34013306,88512.0,88503.0,0.01129905]
[1766337170773,0.1771,88511.0,88502.0,0.01129917]
[1766337171093,0.1771,88511.0,88502.0,0.01109917]
[1766337171534,0.33873,88511.0,88502.0,0.01129917]
[1766337172558,0.33873,88511.0,88503.0,0.01129905]
[1766337173709,0.33873,88511.0,88502.0,0.01129917]
[1766337174628,0.33873,88511.0,88503.0,0.01129905]
[1766337174876,0.33873,88511.0,88502.0,0.01129917]
[1766337175155,0.33873,88511.0,88503.0,0.01129905]
[1766337175715,0.33873,88511.0,88504.0,0.01129892]
[1766337175912,0.33873,88511.0,88503.0,0.01129905]
[1766337176578,0.1771,88510.0,88503.0,0.01129905]
[1766337176766,0.1771,88510.0,88504.0,0.01129892]
[1766337176984,0.1771,88510.0,88503.0,0.01129905]
[1766337177536,0.1771,88510.0,88504.0,0.01129892]
[1766337177938,0.1771,88510.0,88503.0,0.01129905]
[1766337178555,0.1771,88510.0,88504.0,0.01129892]
[1766337179760,0.1771,88510.0,88505.0,0.01129879]
[1766337179959,0.16163,88511.0,88505.0,0.01129879]
[1766337180196,0.16153,88511.0,88510.0,0.00055]
[1766337180505,0.16143,88511.0,88506.0,0.01129866]
[1766337180708,0.16143,88511.0,88505.0,0.01129879]
[1766337181475,0.16143,88511.0,88506.0,0.01129866]
[1766337181669,0.16143,88511.0,88505.0,0.01129879]
[1766337182303,0.16088,88511.0,88505.0,0.01129879]
[1766337182467,0.16088,88511.0,88504.0,0.01129892]
[1766337182666,0.33798,88511.0,88503.0,0.01129905]
[1766337183086,0.33798,88511.0,88505.0,0.01129879]
[1766337183337,0.33798,88511.0,88504.0,0.01129892]
[1766337184002,0.33798,88511.0,88505.0,0.01129879]
[1766337184622,0.33798,88511.0,88504.0,0.01129892]
[1766337185238,0.33798,88511.0,88505.0,0.01129879]
[1766337185441,0.33798,88511.0,88504.0,0.01129892]
[1766337188669,0.33798,88511.0,88501.0,0.0112993]
[1766337188873,0.000549,88504.0,88501.0,0.0112993]
[1766337189282,0.33798,88511.0,88503.0,0.01109905]
[1766337190962,0.33798,88511.0,88502.0,0.01129917]
[1766337191824,0.000549,88502.0,88500.0,0.03732038]
[1766337192236,0.18482,88507.0,88500.0,0.03732038]
[1766337192612,0.18482,88507.0,88500.0,0.04861981]
[1766337192813,0.18482,88507.0,88501.0,0.0112993]
[1766337193014,0.18482,88507.0,88500.0,0.04861981]
[1766337193802,0.18482,88507.0,88500.0,0.03732038]
[1766337196984,0.15056,88509.0,88500.0,0.03732038]
[1766337197693,0.15056,88509.0,88500.0,0.03677138]
[1766337198051,0.15056,88509.0,88500.0,0.04807081]
[1766337198921,0.15056,88509.0,88500.0,0.03677138]
[1766337199037,0.18482,88508.0,88496.0,0.03164038]
[1766337199248,0.18482,88507.0,88497.0,0.01129981]
[1766337199453,0.15056,88508.0,88498.0,0.01129969]
[1766337199655,0.15056,88508.0,88500.0,0.01129943]
[1766337200051,0.15624,88508.0,88500.0,0.01129943]
[1766337200519,0.15624,88508.0,88502.0,0.01129917]
[1766337200805,0.15624,88508.0,88501.0,0.0112993]
[1766337203318,0.15624,88508.0,88499.0,0.01129956]
[1766337203831,0.15624,88508.0,88500.0,0.01129943]
[1766337204933,0.15624,88508.0,88499.0,0.01129956]
[1766337205616,0.15624,88508.0,88500.0,0.01129943]
[1766337206192,0.15624,88508.0,88499.0,0.01129956]
[1766337206429,0.15624,88508.0,88500.0,0.01129943]
[1766337207012,0.15624,88508.0,88499.0,0.01129956]
[1766337207959,0.15624,88508.0,88497.0,0.01129981]
[1766337208389,0.15624,88508.0,88498.0,0.01129969]
[1766337209124,0.32316,88508.0,88499.0,0.01129956]
[1766337209308,0.32316,88508.0,88497.0,0.01129981]
[1766337209473,0.32316,88508.0,88496.0,0.04862032]
[1766337209874,0.32316,88508.0,88497.0,0.01129981]
[1766337210373,0.15624,88508.0,88496.0,0.03732038]
[1766337210634,0.16692,88507.0,88496.0,0.03732038]
[1766337211191,0.16692,88506.0,88496.0,0.03732038]
[1766337211412,0.16692,88506.0,88490.0,0.06780419]
[1766337211413,0.15453,88503.0,88488.0,0.04294019]
[1766337211653,0.46057669,88506.0,88485.0,0.01130135]
[1766337211654,0.15453,88493.0,88485.0,0.01130135]
[1766337211927,0.14853469,88492.0,88485.0,0.01130135]
[1766337213039,0.14853469,88492.0,88484.0,0.01698147]
[1766337213809,0.14853469,88492.0,88484.0,0.00568]
[1766337214008,0.14853469,88492.0,88484.0,0.01698147]
[1766337214371,0.14853469,88492.0,88484.0,0.00568]
[1766337218253,0.31947,88490.0,88481.0,0.01698186]
[1766337218447,0.16562,88489.0,88481.0,0.00568]
[1766337228283,0.16562,88489.0,88478.0,0.03395095]
[1766337228410,0.16562,88489.0,88480.0,0.00568]
[1766337233374,0.15385,88490.0,88480.0,0.01698198]
[1766337233749,0.15385,88490.0,88480.0,0.00568]
[1766337234080,0.15385,88490.0,88480.0,0.01698198]
[1766337234542,0.15385,88490.0,88480.0,0.00568]
[1766337235178,0.15385,88490.0,88480.0,0.01698198]
[1766337235729,0.15385,88490.0,88480.0,0.00568]
[1766337235929,0.15385,88490.0,88480.0,0.01698198]
[1766337236611,0.00568,88492.0,88480.0,0.01698198]
[1766337236975,0.00568,88492.0,88481.0,0.01130186]
[1766337237394,0.00568,88492.0,88480.0,0.01698198]
[1766337238144,0.1713,88492.0,88480.0,0.01698198]
[1766337238363,0.1713,88492.0,88480.0,0.00568]
[1766337238960,0.1713,88492.0,88480.0,0.01698198]
[1766337239769,0.1713,88492.0,88480.0,0.47773469]
[1766337240914,0.1713,88492.0,88481.0,0.01130186]
[1766337243237,0.1713,88492.0,88482.0,0.01130173]
[1766337243445,0.1712,88492.0,88482.0,0.01130173]
[1766337243648,0.1711,88492.0,88482.0,0.01130173]
[1766337246723,0.1711,88492.0,88481.0,0.01130186]
[1766337247135,0.1711,88492.0,88482.0,0.01130173]
[1766337247501,0.1711,88492.0,88481.0,0.01130186]
[1766337248041,0.1711,88492.0,88482.0,0.01130173]
[1766337252401,0.1711,88492.0,88483.0,0.0113016]
[1766337252605,0.1711,88492.0,88482.0,0.01130173]
[1766337252801,0.15385,88497.0,88482.0,0.01130173]
[1766337253017,0.03395249,88503.0,88489.0,0.01130083]
[1766337253180,0.00568,88502.0,88485.0,0.06780791]
[1766337253386,0.00568,88502.0,88486.0,0.01130122]
[1766337253584,0.15898,88502.0,88486.0,0.01130122]
[1766337253808,0.1533,88500.0,88488.0,0.01130096]
[1766337254462,0.1533,88500.0,88489.0,0.01130083]
[1766337254743,0.1533,88500.0,88488.0,0.01130096]
[1766337254940,0.1533,88500.0,88489.0,0.01130083]
[1766337255565,0.00568,88502.0,88490.0,0.47205342]
[1766337255881,0.00568,88502.0,88492.0,0.01130045]
[1766337257045,0.00568,88502.0,88494.0,0.0113002]
[1766337257222,0.00568,88502.0,88493.0,0.01130032]
[1766337257651,0.00568,88502.0,88496.0,0.01129994]
[1766337259572,0.00568,88502.0,88495.0,0.01130007]
[1766337260235,0.00568,88502.0,88497.0,0.01129981]
[1766337260617,0.00568,88502.0,88496.0,0.01129994]
[1766337261811,0.00568,88502.0,88494.0,0.0113002]
[1766337262164,0.16646,88502.0,88494.0,0.0113002]
[1766337263146,0.16646,88502.0,88495.0,0.01130007]
[1766337263305,0.00568,88502.0,88495.0,0.01130007]
[1766337263898,0.00568,88502.0,88497.0,0.01129981]
[1766337264243,0.00568,88502.0,88496.0,0.01129994]
[1766337266781,0.00568,88502.0,88495.0,0.01130007]
[1766337267257,0.00568,88502.0,88496.0,0.01129994]
[1766337270660,0.005131,88502.0,88497.0,0.01129981]
[1766337270819,0.005131,88502.0,88496.0,0.01129994]
[1766337279654,0.005131,88502.0,88495.0,0.01130007]
[1766337279861,0.005131,88502.0,88496.0,0.01129994]
[1766337281463,0.005131,88502.0,88497.0,0.01129981]
[1766337281640,0.005131,88502.0,88498.0,0.01129969]
[1766337281824,0.005131,88502.0,88497.0,0.01129981]
[1766337283478,0.000549,88497.0,88495.0,0.01130007]
[1766337284026,0.005131,88502.0,88496.0,0.01129994]
[1766337284584,0.005131,88502.0,88495.0,0.01110007]
[1766337284768,0.000549,88496.0,88495.0,0.01110007]
[1766337284968,0.005131,88502.0,88495.0,0.01110007]
[1766337286316,0.005131,88502.0,88496.0,0.01129994]
[1766337288629,0.005131,88502.0,88495.0,0.01110007]
[1766337289008,0.005131,88502.0,88496.0,0.01129994]
[1766337290225,0.005131,88502.0,88494.0,0.0113002]
[1766337290873,0.005131,88502.0,88495.0,0.01130007]
[1766337291234,0.005131,88502.0,88496.0,0.01129994]
[1766337292325,0.00568,88502.0,88496.0,0.01129994]
[1766337292544,0.00568,88502.0,88495.0,0.02260027]
[1766337292745,0.00568,88502.0,88496.0,0.01129994]
[1766337293691,0.00568,88502.0,88495.0,0.0113002]
[1766337293843,0.00568,88502.0,88495.0,0.01130007]
[1766337298073,0.00568,88502.0,88494.0,0.0113002]
[1766337298257,0.00568,88502.0,88495.0,0.01130007]
[1766337299859,0.00568,88502.0,88494.0,0.0113002]
[1766337300579,0.00568,88502.0,88495.0,0.01130007]
[1766337305894,0.00568,88502.0,88494.0,0.0113002]
[1766337306410,0.00568,88502.0,88495.0,0.01130007]
[1766337307438,0.00568,88502.0,88494.0,0.0113002]
[1766337307667,0.00568,88502.0,88495.0,0.01130007]
[1766337308193,0.00568,88502.0,88494.0,0.0113002]
[1766337308428,0.00568,88502.0,88495.0,0.01130007]
[1766337309141,0.00568,88502.0,88494.0,0.0113002]
[1766337309347,0.00568,88502.0,88495.0,0.01130007]
[1766337309547,0.00568,88502.0,88494.0,0.0113002]
[1766337309745,0.00568,88502.0,88495.0,0.01130007]
[1766337312325,0.00568,88502.0,88496.0,0.01129994]
[1766337312544,0.00568,88502.0,88492.0,0.10174972]
[1766337312760,0.00558,88502.0,88492.0,0.01130045]
[1766337313104,0.00558,88502.0,88493.0,0.01130032]
[1766337313105,0.13484,88502.0,88493.0,0.01130032]
[1766337313308,0.28463,88502.0,88493.0,0.01130032]
[1766337313635,0.28463,88502.0,88492.0,0.04524764]
[1766337314353,0.14979,88501.0,88493.0,0.01130032]
[1766337314549,0.14979,88501.0,88493.0,0.01110032]
[1766337314852,0.14979,88501.0,88492.0,0.04524764]
[1766337315879,0.14979,88501.0,88493.0,0.01130032]
[1766337316462,0.14979,88501.0,88494.0,0.0113002]
[1766337316665,0.14979,88501.0,88495.0,0.01130007]
[1766337316864,0.00558,88502.0,88495.0,0.01130007]
[1766337317283,0.00558,88502.0,88496.0,0.01129994]
[1766337318036,0.00558,88502.0,88495.0,0.01130007]
[1766337319563,0.00558,88502.0,88494.0,0.0226004]
[1766337325103,0.00558,88502.0,88494.0,0.0113002]
[1766337325336,0.00558,88502.0,88493.0,0.01130032]
[1766337325718,0.00558,88502.0,88494.0,0.0113002]
[1766337329264,0.00558,88502.0,88494.0,2e-07]
[1766337329468,0.1235788,88494.0,88488.0,0.00568]
[1766337329671,0.1235788,88494.0,88447.0,0.65617459]
[1766337329672,0.14934,88489.0,88476.0,0.03164038]
[1766337329878,0.14934,88485.0,88477.0,0.01130237]
[1766337330340,0.14934,88485.0,88478.0,0.01130224]
[1766337330738,0.12303,88486.0,88479.0,0.01130211]
[1766337330942,0.1231025,88486.0,88478.0,0.01130224]
[1766337331164,0.1231025,88486.0,88477.0,0.01130237]
[1766337331592,0.1231025,88486.0,88478.0,0.01130224]
[1766337332526,0.1231025,88486.0,88476.0,0.04294288]
[1766337332977,7.25e-05,88486.0,88476.0,0.03164038]
[1766337333626,0.12303,88474.0,88473.0,4.22e-06]
[1766337333819,0.12303,88474.0,88456.0,0.01130505]
[1766337333820,0.00568,88474.0,88460.0,0.00568]
[1766337334129,0.12303,88473.0,88460.0,0.00568]
[1766337334322,0.14934,88472.0,88460.0,0.00568]
[1766337334549,0.27237,88470.0,88460.0,0.00568]
[1766337334770,0.14934,88469.0,88460.0,0.00568]
[1766337337195,0.12303,88470.0,88460.0,0.01698454]
[1766337337399,0.12303,88470.0,88461.0,0.01130441]
[1766337337619,0.12303,88470.0,88462.0,0.01130428]
[1766337338718,0.12303,88470.0,88463.0,0.01130416]
[1766337338953,0.14596,88473.0,88465.0,0.0113039]
[1766337339440,0.14596,88473.0,88467.0,0.01130364]
[1766337339643,0.14596,88473.0,88468.0,0.01130352]
[1766337340222,0.14541,88473.0,88467.0,0.01130364]
[1766337340416,0.14541,88473.0,88469.0,0.01130339]
[1766337340644,0.14541,88473.0,88468.0,0.01130352]
[1766337340814,0.14541,88473.0,88469.0,0.01130339]
[1766337342145,0.00568,88476.0,88469.0,0.01130339]
[1766337342343,0.00568,88476.0,88468.0,0.01130352]
[1766337342552,0.00568,88476.0,88469.0,0.01130339]
[1766337342782,0.00568,88476.0,88470.0,0.01130326]
[1766337343381,0.00568,88476.0,88469.0,0.01130339]
[1766337343584,0.00568,88476.0,88470.0,0.01130326]
[1766337343984,0.00568,88476.0,88470.0,0.04525955]
[1766337344243,0.00568,88476.0,88470.0,0.03395629]
[1766337344465,0.00568,88476.0,88453.0,0.22610858]
[1766337344466,0.14596,88471.0,88458.0,0.0113048]
[1766337344692,0.14596,88469.0,88464.0,0.03395779]
[1766337344894,0.14596,88469.0,88460.0,0.47762062]
[1766337345306,0.14596,88469.0,88460.0,0.51157841]
[1766337345718,0.12616,88470.0,88462.0,0.01130428]
[1766337345852,0.14596,88467.0,88460.0,0.51157841]
[1766337346045,0.14596,88466.0,88460.0,0.03963779]
[1766337346666,0.14596,88466.0,88459.0,0.00568]
[1766337346870,0.14596,88466.0,88460.0,0.01130454]
[1766337347101,0.14596,88466.0,88462.0,0.01130428]
[1766337347303,0.14596,88466.0,88461.0,0.01130441]
[1766337347475,0.145411,88466.0,88461.0,0.01130441]
[1766337347681,0.145411,88466.0,88462.0,0.01130428]
[1766337348760,0.145411,88466.0,88463.0,0.01130416]
[1766337349191,0.145411,88466.0,88462.0,0.01130428]
[1766337349949,0.01130441,88470.0,88464.0,0.01130403]
[1766337350598,0.01698441,88470.0,88464.0,0.01130403]
[1766337350811,0.01698441,88470.0,88465.0,0.0113039]
[1766337351152,0.00568,88470.0,88464.0,0.01130403]
[1766337352120,0.00568,88470.0,88463.0,0.01130416]
[1766337352326,0.00568,88470.0,88464.0,0.01130403]
[1766337352696,0.00568,88470.0,88463.0,0.01130416]
[1766337353118,0.00568,88470.0,88464.0,0.01130403]
[1766337353735,0.00568,88470.0,88465.0,0.0113039]
[1766337353937,0.00568,88470.0,88464.0,0.01130403]
[1766337354863,0.00513,88470.0,88465.0,0.0113039]
[1766337355463,0.00513,88470.0,88464.0,0.01130403]
[1766337355712,0.000549,88464.0,88460.0,0.47194062]
[1766337355921,0.14596,88467.0,88462.0,0.01130428]
[1766337356114,0.14596,88466.0,88462.0,0.01130428]
[1766337356461,0.14596,88466.0,88461.0,0.01130441]
[1766337356661,0.14596,88466.0,88462.0,0.01130428]
[1766337359279,0.12756972,88466.0,88462.0,0.01130428]
[1766337360699,0.12616,88467.0,88463.0,0.01130416]
[1766337361830,0.12616,88467.0,88462.0,0.01130428]
[1766337362031,0.12616,88467.0,88463.0,0.01130416]
[1766337362249,0.12616,88467.0,88462.0,0.01130428]
[1766337362450,0.12616,88467.0,88461.0,0.01130441]
[1766337362598,0.12616,88467.0,88463.0,0.01130416]
[1766337362794,0.12616,88467.0,88461.0,0.01130441]
[1766337363114,0.27212,88465.0,88461.0,0.01130441]
[1766337364259,0.15109,88470.0,88463.0,0.01130416]
[1766337364434,0.14596,88469.0,88463.0,0.01130416]
[1766337365274,0.14596,88469.0,88464.0,0.01130403]
[1766337365719,0.14576,88469.0,88464.0,0.01130403]
[1766337366112,0.12431,88469.0,88464.0,0.01130403]
[1766337367810,0.12431,88469.0,88465.0,0.0113039]
[1766337368016,0.12431,88469.0,88465.0,0.0080139]
[1766337369172,0.10591972,88469.0,88465.0,0.0080139]
[1766337369393,0.25286972,88469.0,88465.0,0.0080139]
[1766337369694,0.25286972,88469.0,88464.0,0.01130403]
[1766337370263,0.25286972,88469.0,88463.0,0.01130416]
[1766337370564,0.25286972,88469.0,88462.0,0.01130428]
[1766337370710,0.25286972,88469.0,88464.0,0.01130403]
[1766337371108,0.25286972,88469.0,88463.0,0.01130416]
[1766337371309,0.25286972,88469.0,88464.0,0.01130403]
[1766337371624,0.25286972,88469.0,88462.0,0.01130428]
[1766337371839,0.25286972,88469.0,88463.0,0.01130416]
[1766337372040,0.25286972,88469.0,88462.0,0.01130428]
[1766337372245,0.25286972,88469.0,88463.0,0.01130416]
[1766337372566,0.000549,88463.0,88460.0,0.01130454]
[1766337372861,0.000549,88463.0,88460.0,0.01120454]
[1766337373123,0.25286972,88469.0,88462.0,0.01120428]
[1766337373635,0.10591972,88469.0,88460.0,0.01130454]
[1766337373836,0.14695,88468.0,88460.0,0.01130454]
[1766337374035,0.14695,88468.0,88462.0,0.01130428]
[1766337374289,0.14695,88468.0,88463.0,0.01130416]
[1766337375194,0.00513,88470.0,88467.0,0.01130364]
[1766337375369,0.14695,88479.0,88472.0,0.01130301]
[1766337375370,0.00568,88473.0,88472.0,0.01130301]
[1766337375573,0.00568,88474.0,88472.0,0.01130301]
[1766337375775,0.12431,88480.0,88474.0,0.01130275]
[1766337376098,0.00568,88479.0,88473.0,0.01130288]
[1766337376328,0.01698416,88479.0,88473.0,0.01130288]
[1766337376672,0.00568,88478.0,88475.0,0.01130262]
[1766337376871,0.00568,88477.0,88475.0,0.01130262]
[1766337378035,0.00568,88477.0,88474.0,0.01130275]
[1766337379286,0.00236005,88477.0,88474.0,0.06781646]
[1766337379687,0.00236005,88477.0,88474.0,0.01130275]
[1766337390196,0.00236005,88477.0,88474.0,0.06781645]
[1766337391917,0.00568,88478.0,88477.0,0.01130237]
[1766337392117,0.15826572,88485.0,88476.0,0.0113025]
[1766337392322,0.00568,88484.0,88477.0,0.01130237]
[1766337392982,0.01698262,88484.0,88477.0,0.01130237]
[1766337393370,0.01698262,88484.0,88475.0,0.01130262]
[1766337393371,0.000549,88477.0,88475.0,0.01130262]
[1766337393810,0.01130262,88483.0,88475.0,0.01130262]
[1766337394126,0.14353,88481.0,88475.0,0.01130262]
[1766337394499,0.14353,88481.0,88476.0,0.0113025]
[1766337394694,0.14353,88481.0,88475.0,0.01130262]
[1766337394901,0.14353,88481.0,88476.0,0.0113025]
[1766337396254,0.14353,88481.0,88477.0,0.01130237]
[1766337396617,0.14353,88481.0,88476.0,0.0113025]
[1766337397005,0.14353,88481.0,88477.0,0.01130237]
[1766337397538,0.12191,88482.0,88476.0,0.0113025]
[1766337398520,0.12191,88482.0,88476.0,0.0107535]
[1766337398926,0.26064,88482.0,88476.0,0.0107535]
[1766337399681,0.01698262,88484.0,88477.0,0.01130237]
[1766337399822,0.01698262,88484.0,88478.0,0.01130224]
[1766337400164,0.15571262,88484.0,88477.0,0.01130237]
[1766337400718,0.14441,88484.0,88476.0,0.0243165]
[1766337401054,0.14441,88484.0,88476.0,0.0113025]
[1766337401411,0.14441,88484.0,88477.0,0.01130237]
[1766337401787,0.13873,88484.0,88477.0,0.01130237]
[1766337401941,0.00568,88483.0,88477.0,0.01130237]
[1766337402141,0.14441,88483.0,88477.0,0.01130237]
[1766337402583,0.13873,88482.0,88476.0,0.0113025]
[1766337403178,0.13873,88482.0,88475.0,0.01130262]
[1766337403692,0.13873,88482.0,88476.0,0.0113025]
[1766337404259,0.13873,88482.0,88477.0,0.01130237]
[1766337404461,0.13873,88482.0,88476.0,0.0113025]
[1766337404661,0.13873,88482.0,88477.0,0.01130237]
[1766337404976,0.13873,88482.0,88476.0,0.0113025]
[1766337405176,0.13873,88482.0,88477.0,0.01130237]
[1766337405581,0.13873,88482.0,88478.0,0.01130224]
[1766337405903,0.13873,88482.0,88477.0,0.01130237]
[1766337406661,0.13873,88482.0,88478.0,0.01130224]
[1766337406997,0.12507,88482.0,88476.0,0.0113025]
[1766337407145,0.12507,88482.0,88477.0,0.01130237]
[1766337407591,0.12507,88482.0,88474.0,0.0565137]
[1766337407592,0.00055,88477.0,88474.0,0.01130275]
[1766337407967,0.00055,88477.0,88474.0,0.01120275]
[1766337408167,0.13873,88481.0,88475.0,0.01130262]
[1766337409666,0.13873,88481.0,88474.0,0.01110275]
[1766337410013,0.2638,88481.0,88474.0,0.01110275]
[1766337410647,0.2638,88481.0,88474.0,0.06761639]
[1766337410848,0.2638,88481.0,88475.0,0.01130262]
[1766337411150,0.2638,88481.0,88476.0,0.0113025]
[1766337411891,0.124521,88481.0,88478.0,0.01130224]
[1766337412548,7.25e-05,88486.0,88483.0,0.06780942]
[1766337412873,0.00548,88495.0,88493.0,0.01130032]
[1766337413020,0.00548,88495.0,88491.0,0.01130058]
[1766337413021,0.000549,88493.0,88491.0,0.01130058]
[1766337413420,0.000549,88493.0,88488.0,0.06780571]
[1766337413421,0.13873,88499.0,88490.0,0.01130071]
[1766337413628,0.00568,88498.0,88490.0,0.01130071]
[1766337413948,0.14441,88498.0,88490.0,0.01130071]
[1766337414864,0.13873,88497.0,88490.0,0.01130071]
[1766337415032,0.13873,88497.0,88487.0,0.04294147]
[1766337415033,0.000549,88490.0,88487.0,0.04294147]
[1766337415765,0.00568,88493.0,88487.0,0.03164038]
[1766337415981,0.00568,88493.0,88487.0,0.04294147]
[1766337416161,0.000549,88487.0,88486.0,0.01130122]
[1766337416718,0.00568,88493.0,88487.0,0.01130109]
[1766337417163,0.00568,88493.0,88486.0,0.01130122]
[1766337418222,0.00568,88493.0,88486.0,0.06780712]
[1766337418430,0.00568,88493.0,88486.0,0.01130122]
[1766337418887,0.00568,88493.0,88487.0,0.01130109]
[1766337419475,0.00568,88493.0,88488.0,0.01130096]
[1766337419648,0.00568,88493.0,88489.0,0.01130083]
[1766337419848,0.00568,88493.0,88490.0,0.01130071]
[1766337420048,0.00568,88493.0,88489.0,0.01130083]
[1766337420248,0.00568,88493.0,88490.0,0.06780415]
[1766337420451,0.00568,88493.0,88492.0,0.05650228]
[1766337420651,0.2638,88497.0,88494.0,0.0113002]
[1766337420872,0.00568,88496.0,88494.0,0.0113002]
[1766337421803,0.00568,88495.0,88494.0,0.0113002]
[1766337423085,0.00568,88495.0,88494.0,0.0678012]
[1766337423287,0.00568,88495.0,88490.0,0.01130071]
[1766337423288,0.13873,88513.0,88498.0,0.01129969]
[1766337423491,0.005787,88513.0,88505.0,0.01129879]
[1766337423714,0.144517,88513.0,88506.0,0.01129866]
[1766337424009,0.005787,88513.0,88510.0,0.01129815]
[1766337424717,0.000549,88510.0,88508.0,0.01129841]
[1766337424880,0.000549,88510.0,88507.0,0.01129854]
[1766337425094,0.00055,88507.0,88504.0,0.01129892]
[1766337425294,0.11992,88511.0,88504.0,0.01129892]
[1766337425761,0.005787,88513.0,88505.0,0.01129879]
[1766337425951,0.132287,88513.0,88504.0,0.01129892]
[1766337426135,0.132287,88513.0,88505.0,0.01129879]
[1766337426539,0.000549,88505.0,88504.0,0.01129892]
[1766337427178,0.11992,88512.0,88505.0,0.01129879]
[1766337427863,0.11992,88512.0,88506.0,0.01129866]
[1766337428009,0.11992,88512.0,88505.0,0.01129879]
[1766337428214,0.24642,88512.0,88506.0,0.01129866]
[1766337428563,0.24642,88512.0,88505.0,0.01129879]
[1766337429275,0.11992,88512.0,88507.0,0.01129854]
[1766337431225,0.11992,88512.0,88505.0,0.01129879]
[1766337431462,0.000549,88507.0,88505.0,0.06779249]
[1766337431659,0.11992,88512.0,88508.0,0.01129841]
[1766337431860,0.11992,88512.0,88507.0,0.01129854]
[1766337432823,0.11992,88512.0,88505.0,0.01129879]
[1766337433051,0.01129726,88517.0,88488.0,0.22601894]
[1766337433291,0.22593286,88523.0,86200.0,0.003]
[1766337433292,0.0002,88533.0,88530.0,0.0112956]
[1766337433464,0.0002,88539.0,88532.0,0.0881169]
[1766337433660,0.0002,88539.0,88536.0,0.0675689]
[1766337434065,0.00568,88543.0,88541.0,0.0112942]
[1766337434283,0.005331,88543.0,88540.0,0.01129433]
[1766337435296,0.1265,88548.0,88539.0,0.01129445]
[1766337435297,0.00568,88546.0,88539.0,0.01129445]
[1766337435502,0.00568,88546.0,88539.0,0.03392899]
[1766337435899,0.00568,88553.0,88539.0,0.03392899]
[1766337436100,0.00568,88553.0,88552.0,0.03164038]
[1766337436418,0.00568,88553.0,88552.0,0.03129138]
[1766337437107,0.04544,88581.0,88553.0,0.0001]
[1766337437306,0.04544,88581.0,88573.0,0.0002]
[1766337437307,0.0002,88581.0,88573.0,0.0002]
[1766337437639,0.01128923,88580.0,88573.0,0.0002]
[1766337437953,0.01128923,88580.0,88559.0,0.0112919]
[1766337437954,0.01129101,88566.0,88546.0,0.01129356]
[1766337438163,0.27122378,88581.0,88542.0,0.22588077]
[1766337438164,0.1265,88560.0,88552.0,0.03109138]
[1766337438341,0.1265,88559.0,88552.0,0.03109138]
[1766337438537,0.1265,88559.0,88539.0,0.05647198]
[1766337438538,0.1265,88559.0,88547.0,0.0339258]
[1766337438539,0.01129241,88555.0,88547.0,0.0339258]
[1766337438748,0.0112919,88559.0,88547.0,0.0339258]
[1766337438749,0.11992,88554.0,88547.0,0.0339258]
[1766337438944,0.11992,88554.0,88553.0,0.03164038]
[1766337439167,0.12102664,88554.0,88553.0,0.03164038]
[1766337439544,0.0112933,88548.0,88543.0,0.0339258]
[1766337439763,0.0112933,88548.0,88532.0,0.03732038]
[1766337439764,0.13121407,88542.0,88532.0,0.03732038]
[1766337439971,0.11992,88542.0,88532.0,0.03732038]
[1766337440164,0.11992,88541.0,88532.0,0.03164038]
[1766337440587,0.1265,88538.0,88532.0,0.03164038]
[1766337443098,0.1265,88536.0,88532.0,3.8e-07]
[1766337443297,0.01129509,88534.0,88514.0,0.05629802]
[1766337443520,0.1264,88535.0,88533.0,3.8e-07]
[1766337445005,0.1264,88535.0,88517.0,0.01129726]
[1766337445007,0.01129662,88522.0,88516.0,0.03393125]
[1766337445179,0.11992,88522.0,88512.0,0.00568]
[1766337445671,0.1265,88521.0,88512.0,0.00568]
[1766337446034,0.06216015,88527.0,88512.0,0.00568]
[1766337446035,0.14796,88527.0,88521.0,0.000549]
[1766337446235,0.27381,88527.0,88526.0,0.03164038]
[1766337446792,0.27381,88527.0,88526.0,0.01186515]
[1766337447490,0.01129471,88537.0,88527.0,0.000549]
[1766337447685,0.01129496,88535.0,88526.0,0.01186515]
[1766337448052,0.15925484,88536.0,88526.0,0.01186515]
[1766337448468,0.14228,88536.0,88526.0,0.01186515]
[1766337448676,0.01754515,88535.0,88526.0,0.01186515]
[1766337451743,0.17112011,88535.0,88526.0,0.01186515]
[1766337452104,0.00027673,88527.0,88526.0,0.01186515]
[1766337452314,7.3e-07,88527.0,88526.0,0.01186515]
[1766337453242,7.3e-07,88527.0,88526.0,0.01169615]
[1766337453410,0.15357522,88533.0,88526.0,0.01169615]
[1766337453607,0.14228,88533.0,88526.0,0.01169615]
[1766337454571,0.15357522,88533.0,88526.0,0.01169615]
[1766337454723,0.14228,88533.0,88526.0,0.01169615]
[1766337457366,0.13228,88532.0,88526.0,0.01169615]
[1766337463381,0.01129509,88534.0,88527.0,0.03164038]
[1766337463602,0.01129509,88534.0,88520.0,3.8e-07]
[1766337463603,0.01129586,88528.0,88520.0,3.8e-07]
[1766337463808,0.01129675,88521.0,88510.0,0.04918553]
[1766337464005,0.460381,88530.0,88491.0,0.22601122]
[1766337464006,0.13228,88510.0,88506.0,0.03164038]
[1766337464230,0.13228,88510.0,88502.0,0.00568]
[1766337464231,0.01129879,88505.0,88502.0,0.00568]
[1766337464409,0.01129879,88505.0,88483.0,0.0113016]
[1766337464410,0.13228,88503.0,88495.0,0.00568]
[1766337464960,0.13228,88508.0,88499.0,0.01129956]
[1766337465171,0.1314,88511.0,88503.0,0.03164038]
[1766337465310,0.1314,88511.0,88508.0,0.001099]
[1766337465656,0.1314,88511.0,88503.0,0.03164038]
[1766337466036,0.13228,88510.0,88503.0,0.03164038]
[1766337466439,0.1314,88511.0,88503.0,0.03164038]
[1766337466641,0.13085,88511.0,88510.0,0.000549]
[1766337466845,0.13085,88511.0,88503.0,0.04293943]